Cogmind - Beta 15 @@@ ROGUE MODE // 2025.09.17 @ 10:47:49 Player: Syrue Result: Self-destructed Performance ------------- Evolutions (2) 1000 Regions Visited (3) 600 Robots Destroyed (3) 15 Value Destroyed (120) 120 Prototype IDs (0) 0 Alien Tech Used (0) 0 Bonus (0) 0 TOTAL SCORE: 1735 Bonus ------- None Cogmind --------- Core Integrity 505/550 Matter 266/300 Energy 91/100 System Corruption 0% Temperature Cool (0) Movement Flying (120) Ox1 Location -8/Materials Parts ------- > --- POWER (2) -------- (None) > --- PROPULSION (3) --- Xenon Bombardment Thruster > --- UTILITY (4) ------ Disposable Heat Sink Subdweller Optics Hacking Suite Makeshift Hacking Suite > --- WEAPON (2) ------- Subdweller Beam Cannon > --- INVENTORY (5) ---- Compact Wheel Hardened Medium Armor Plating Flamer Peak State ------------ > --- POWER ------------ Ion Engine > --- PROPULSION ------- Xenon Bombardment Thruster Xenon Bombardment Thruster Xenon Bombardment Thruster > --- UTILITY ---------- Disposable Heat Sink Subdweller Optics Hacking Suite Makeshift Hacking Suite > --- WEAPON ----------- Medium Laser Subdweller Beam Cannon > --- INVENTORY -------- Compact Wheel Hardened Medium Armor Plating Flamer [Rating: 27] Favorites ----------- Power Ion Engine Engine Ion Engine Propulsion Compact Wheel Wheel Compact Wheel Flight Unit Xenon Bombardment Thruster Utility Disposable Heat Sink Device Disposable Heat Sink Storage Light Humpback Hackware Makeshift Hacking Suite Weapon Medium Laser Energy Gun Medium Laser Energy Cannon Subdweller Beam Cannon Ballistic Gun Light Assault Rifle Build | -11 -10 -10 -8 ------- Run | Yrd Mat Sub Mat Slots Evolved 4 | . . . 4 Power 1 | . . . 1 Propulsion 1 | . . . 1 Utility 2 | . . . 2 Weapon . | . . . . Parts Attached 14 | 5 . 4 5 Power 1 | 1 . . . Engine 1 | 1 . . . Core . | . . . . Reactor . | . . . . Propulsion 5 | 2 . . 3 Treads . | . . . . Leg . | . . . . Wheel 2 | 2 . . . Hover . | . . . . Flight 3 | . . . 3 Utility 5 | . . 3 2 Device 2 | . . 2 . Storage 1 | . . 1 . Processor . | . . . . Hackware 2 | . . . 2 Protection . | . . . . Artifact . | . . . . Weapon 3 | 2 . 1 . Energy Gun 1 | 1 . . . Energy Cannon 1 | . . 1 . Ballistic Gun 1 | 1 . . . Ballistic Cannon . | . . . . Launcher . | . . . . Special Weapon . | . . . . Impact Weapon . | . . . . Slashing Weapon . | . . . . Piercing Weapon . | . . . . Special Melee Weapon . | . . . . Unidentified Prototypes . | . . . . Parts Lost 3 | . . 1 2 Power . | . . . . Propulsion 3 | . . 1 2 Utility . | . . . . Weapon . | . . . . Highest Loss Streak 2 | . . 1 2 To Critical Strikes . | . . . . Average Backups 1 | . . . 1 Power . | . . . . Propulsion . | . . . . Utility . | . . . . Weapon . | . . . 1 Tool/Special . | . . . . Unused Backups 4 | . . 2 2 Power . | . . . . Propulsion . | . . . . Utility 2 | . . 1 1 Weapon 2 | . . 1 1 Tool/Special . | . . . . Average Slot Usage (%) 74 | . 71 81 69 Engine 11 | . 14 14 8 Wheel 17 | . 28 27 5 Flight 4 | . . . 9 Device 10 | . . 6 16 Storage 1 | . . 4 . Hackware 5 | . . . 11 Energy Gun 11 | . 14 14 8 Energy Cannon 5 | . . 3 9 Ballistic Gun 6 | . 14 10 . Peak Build Rating 27 | 5 5 10 27 Average Rating 11 | 3 5 6 17 On Entrance 4 | . 5 5 9 Naked Turns . | . . . . Heaviest Build 48 | 8 8 48 18 Greatest Support 32 | 32 32 32 18 Greatest Overweight (x) 1 | . . 1 1 Average Overweight (x) . | . . . . Largest Inventory Capacity 25 | 5 5 25 5 Average Capacity 7 | 5 5 11 5 Most Carried 9 | 2 . 9 4 Average Carried 1 | . . . 1 Final Capacity 5 | 5 5 5 5 Final Carried 3 | . . 2 3 Class Distribution -------------------- 90% | Mutant 9% | Hacker-Mutant Dominant Class ---------------- Mutant | -10/Materials Mutant | -10/Subcaves Mutant | -8/Materials Resources | -11 -10 -10 -8 ----------- Run | Yrd Mat Sub Mat Matter Collected 311 | 250 . 45 16 Remotely . | . . . . Salvage Created 135 | . . 135 . Parts 6 | . . 6 . Haulers Intercepted . | . . . . Recyclers Shooed . | . . . . Parts Field Recycled . | . . . . Retrieved Matter . | . . . . Parts Self-Destructed 15 | . . 15 . Prevented . | . . . . Kills | -11 -10 -10 -8 ------- Run | Yrd Mat Sub Mat Combat Hostiles Destroyed 3 | . . 3 . Guns 1 | . . 1 . Cannons 2 | . . 2 . Classes Destroyed 1 | . . 1 . Subdweller 3 | . . 3 . Best Kill Streak 2 | . . 2 . Combat Bots Only 2 | . . 2 . Max Kills in Single Turn 1 | . . 1 . Gunslinging . | . . . . Exploded . | . . . . Melee . | . . . . Uniques/NPCs Destroyed . | . . . . Combat | -11 -10 -10 -8 -------- Run | Yrd Mat Sub Mat Hostile Shots Fired 30 | . . 15 15 Missed 10 | . . 3 7 Hits 20 | . . 12 8 Melee 6 | . . . 6 Projectile 14 | . . 12 2 Critical Strikes 3 | . . . 3 Damage Taken 435 | . . 252 183 Core 90 | . . 45 45 Absorbed by Shields . | . . . . Regen/Repaired (Parts) 8 | . . . 8 Core Remaining (%) 91 | 100 . 82 . Volleys Fired 12 | . . 11 1 Largest 2 | . . 2 2 Hottest 130 | . . 130 130 Shots Fired 24 | . . 22 2 Gun 17 | . . 16 1 Cannon 7 | . . 6 1 Launcher . | . . . . Special . | . . . . Kinetic 5 | . . 5 . Thermal 19 | . . 17 2 Explosive . | . . . . Electromagnetic . | . . . . Robot Hit Streak 7 | . . 7 1 Robot Miss Streak 4 | . . 4 1 Penetration Max . | . . . . Secondary Targets . | . . . . Shots Hit Robots 16 | . . 15 1 Core Hits 6 | . . 6 . Critical Kills . | . . . . Critical Parts Destroyed . | . . . . Critical Strikes 1 | . . 1 . Burn 1 | . . 1 . Melee Attacks . | . . . . Impact . | . . . . Slashing . | . . . . Piercing . | . . . . Sneak Attacks . | . . . . Combat Hostiles . | . . . . Follow-up Attacks . | . . . . Damage Inflicted 266 | . . 239 27 Guns 127 | . . 127 . Cannons 139 | . . 112 27 Explosions . | . . . . Melee . | . . . . Ramming . | . . . . Kinetic 25 | . . 25 . Thermal 241 | . . 214 27 Explosive . | . . . . Electromagnetic . | . . . . Impact . | . . . . Slashing . | . . . . Piercing . | . . . . Highest Corruption . | . . . . Average Corruption . | . . . . Corruption Purged . | . . . . Corruption Blocked . | . . . . Overload Shots . | . . . . Overflow Damage . | . . . . Projectiles . | . . . . Explosions . | . . . . Melee . | . . . . Knockbacks . | . . . . Impact . | . . . . Kinetic . | . . . . Secondary . | . . . . Self-Inflicted Damage . | . . . . Shots . | . . . . Rammed . | . . . . Targets Rammed . | . . . . Kicked . | . . . . Crushed . | . . . . Highest Temperature 87 | . . 87 75 Average Temperature 41 | . . 41 40 Received Heat Transfer 12 | . . 12 . Siege Activations . | . . . . Martial Activations . | . . . . Shielding Activations . | . . . . Robots Disrupted . | . . . . Combat Hostiles . | . . . . Robots Corrupted . | . . . . Combat Hostiles . | . . . . Parts Fried . | . . . . Impact Corruptions . | . . . . Robots Melted . | . . . . Combat Hostiles . | . . . . Parts Melted . | . . . . Heat Transferred 555 | . . 518 37 Parts Sabotaged . | . . . . Parts Stolen . | . . . . Parts Stripped . | . . . . Power Chain Reactions . | . . . . Alert | -11 -10 -10 -8 ------- Run | Yrd Mat Sub Mat Maximum Alert Level . | . . . . Low Security (%) 100 | 100 100 . 100 Level 1 . | . . . . Level 2 . | . . . . Level 3 . | . . . . Level 4 . | . . . . Level 5 . | . . . . High Security . | . . . . Max Security . | . . . . Peak Influence 5 | . 5 . . Initial . | . . . . Average . | . . . . Influence Increases 5 | . 5 . . Successful Hack 5 | . 5 . . Influence Decreases 5 | . 5 . . Time Decay 5 | . 5 . . Squads Dispatched 3 | . . . 3 Investigation . | . . . . Extermination . | . . . . Reinforcement 3 | . . . 3 Assault . | . . . . Garrison . | . . . . Intercept . | . . . . Searches Triggered . | . . . . Construction Impeded . | . . . . Haulers Reinforced . | . . . . Active Scanning Responses . | . . . . Cargo Convoy Interrupts . | . . . . Stealth | -11 -10 -10 -8 --------- Run | Yrd Mat Sub Mat Distress Signals 1 | . . . 1 Communications Jammed . | . . . . Distress Signals . | . . . . Times Spotted 16 | . . 5 11 Peak Tracking Total 9 | . . 2 9 Tactical Retreats . | . . . . Traps | -11 -10 -10 -8 ------- Run | Yrd Mat Sub Mat Traps Triggered . | . . . . Indirectly . | . . . . Trap Hack Attempts . | . . . . Triggered . | . . . . Disarmed . | . . . . Reprogrammed . | . . . . Reused . | . . . . Traps Extracted . | . . . . Installed . | . . . . Triggered . | . . . . Machines | -11 -10 -10 -8 ---------- Run | Yrd Mat Sub Mat Machines Disabled . | . . . . Max in Single Turn . | . . . . Machines Repaired . | . . . . Machines Dismantled . | . . . . Machines Sabotaged . | . . . . Overloaded Fab Kills . | . . . . Hacking | -11 -10 -10 -8 --------- Run | Yrd Mat Sub Mat Machines Accessed 2 | . 1 . 1 Terminals 1 | . 1 . . Fabricators . | . . . . Repair Stations 1 | . . . 1 Recycling Units . | . . . . Scanalyzers . | . . . . Garrison Access . | . . . . Total Hacks 5 | . 1 . 4 Successful 5 | . 1 . 4 Failed . | . . . . Catastrophic . | . . . . Database Lockouts . | . . . . Manual . | . . . . Terminals 1 | . 1 . . Fabricators . | . . . . Repair Stations 4 | . . . 4 Recycling Units . | . . . . Scanalyzers . | . . . . Garrison Access . | . . . . Terminal Hacks 1 | . 1 . . Zone Layout 1 | . 1 . . Fabricator Hacks . | . . . . Repair Station Hacks 4 | . . . 4 Scan Component 3 | . . . 3 Repair 1 | . . . 1 Recycling Unit Hacks . | . . . . Scanalyzer . | . . . . Garrison Access Hacks . | . . . . Unauthorized Hacks . | . . . . Terminals . | . . . . Fabricators . | . . . . Repair Stations . | . . . . Recycling Units . | . . . . Scanalyzers . | . . . . Garrison Access . | . . . . Data Cores Recovered . | . . . . Used . | . . . . Hacking Detections 1 | . . . 1 Full Trace Events 1 | . . . 1 Feedback Events . | . . . . Feedback Blocked . | . . . . Robot Schematics Acquired . | . . . . Robots Built . | . . . . Authchips . | . . . . Time . | . . . . Total Robot Build Rating . | . . . . Part Schematics Acquired . | . . . . Parts Built . | . . . . Authchips . | . . . . Time . | . . . . Total Part Build Rating . | . . . . Parts Repaired 1 | . . . 1 Time 44 | . . . 44 Parts Recycled . | . . . . Recycled Matter . | . . . . Retrieved Matter . | . . . . Retrieved Components . | . . . . Parts Scanalyzed . | . . . . Part Schematics Acquired . | . . . . Parts Damaged . | . . . . Bothacking | -11 -10 -10 -8 ------------ Run | Yrd Mat Sub Mat Used RIF Installer . | . . . . Robots Hacked . | . . . . Non-combat . | . . . . Combat . | . . . . Robot Hacks Applied . | . . . . Relay Couplers Released . | . . . . Fabnet Peak Effective % . | . . . . Robots Rewired . | . . . . Allies Hacked . | . . . . Hacks Repelled . | . . . . Allies | -11 -10 -10 -8 -------- Run | Yrd Mat Sub Mat Total Allies . | . . . . Largest Group . | . . . . Highest-Rated Group . | . . . . Highest-Rated Ally . | . . . . Total Orders . | . . . . Ally Attacks . | . . . . Total Damage . | . . . . Kills . | . . . . Allies Corrupted . | . . . . Allies Melted . | . . . . Intel | -11 -10 -10 -8 ------- Run | Yrd Mat Sub Mat Active Infowar (turns) 313 | . . 82 231 Optics 313 | . . 82 231 Robot Analysis Total . | . . . . Derelict Logs Recovered 1 | . . 1 . Drone Launches . | . . . . Drone Recoveries . | . . . . Exploration | -11 -10 -10 -8 ------------- Run | Yrd Mat Sub Mat Turns Passed 873 | 61 88 337 387 Spaces Moved 599 | 55 59 234 251 Core 8 | 8 . . . Treads . | . . . . Legs . | . . . . Wheels 397 | 47 59 234 57 Hover . | . . . . Flight 194 | . . . 194 Fastest Speed 34 | 50 100 100 34 Average Speed 81 | 92 100 105 51 Slowest Speed 115 | 100 100 115 115 Overloaded Moves . | . . . . Propulsion Burnouts . | . . . . Robots Hopped 1 | . . . 1 Potential Cave-ins . | . . . . Cave-ins Triggered . | . . . . Exploration Rate (%) 13 | 3 13 21 16 Regions Visited 3 Branch Regions 1 Pre-discovered Areas . | . . . . Known Exits Taken . | . . . . Unknown Exits Taken 3 | 1 1 1 . Scrap Searched 3 | . . 3 . Spaces Dug . | . . . . Terrain Destroyed 1 | . . 1 . Melee . | . . . . Projectile 1 | . . 1 . AOE . | . . . . Terrain Rammed . | . . . . Walls Destroyed . | . . . . Machines Disabled . | . . . . Actions | -11 -10 -10 -8 --------- Run | Yrd Mat Sub Mat Total 961 | 64 88 305 504 Wait 312 | . 30 41 241 Move 594 | 54 58 233 249 Hop 1 | . . . 1 Pick Up 21 | 5 . 10 6 Fast Attach . | . . . . Attach 13 | 5 . 3 5 Detach . | . . . . Swap 2 | . . 1 1 Drop 6 | . . 6 . Fire 12 | . . 11 1 Melee . | . . . . Ram . | . . . . Kick . | . . . . Crush . | . . . . Escape Stasis . | . . . . Rewire . | . . . . Trap . | . . . . Miscellaneous . | . . . . Route ------- -11/Scrapyard -10/Materials -10/Subcaves (discovered 2 exits: *Mat / [Scr]) -8/Materials (discovered 2 exits: Fac x2) History --------- Turn | Location | Event 20 | -11/Scrapyard | Discovered new exit (range 15) 62 | -11/Scrapyard | Entered Materials 63 | -10/Materials | Met a group of wandering Federalists 143 | -10/Materials | Discovered new exit (range 7) 150 | -10/Materials | Entered Subcaves 151 | -10/Subcaves | Continued accompanying wandering Federalists (5) 151 | -10/Subcaves | Approached by a straggling Scientist 152 | -10/Subcaves | Learned 2 Materials zone layouts 312 | -10/Subcaves | Build established: Mutant 365 | -10/Subcaves | Disturbed a concealed Subdweller 446 | -10/Subcaves | Discovered new exit (range 16) 447 | -10/Subcaves | Shifting Twisted Machinery released Mak. Hacking Suite 487 | -10/Subcaves | Entered Materials 487 | -8/Materials | Evolved 4 slots: Power x1, Propulsion x1, Utility x2 488 | -8/Materials | Identified exit to Factory 669 | -8/Materials | Repaired Broken Sub. Optics 874 | -8/Materials | Self-destructed Last Messages --------------- ALERT: Hostiles spotted, dispatching reinforcements to Terminal M002. Acquired Hrd. Medium Armor Plating. ALERT: Suspicious intruders detected, dispatching Cutter reinforcements to area. Acquired Hacking Suite. C-17 Slicer knocked back. C-17 Slicer destroyed. The unstable cave ceiling collapses. Med. Laser severed. Acquired 16 matter. Ion Engine severed. Atomic Centrifuge disabled. Xenon Bombardment Thruster destroyed. T-07 Excavator is excavating. U-05 Engineer builds a Wall. K-01 Serf collects debris. Penetrated by Slug. Xenon Bombardment Thruster destroyed. Knocked back. Map ----- +----------------------------------------------------+ | ?????????????????????????????????????????????????? | | ?????????????????????????????????????????????????? | | ?????????????????????????????????????????????????? | | ?????????????????????????????????????????????????? | | ?????????????????????????????????????????????????? | | ?????????????????????????????????????????????????? | | ?????????????????????????????????????????????????? | | ?????????????????????????????????????????????????? | | ?????????????????????????????????????????????????? | | ?????????????####????????????????????????????????? | | ????????????? ????????????????????????????????? | | ?????????????# ????????????????????????????????? | | ?????????????# #???????????????????????????????? | | ?????????????# #???????????????????????????????? | | ?????????????# #???????????????????????????????? | | ?????????????# #???????????????????????????????? | | ?????????????# #?????????????#?????????????????? | | ?????????????# #???????????? #?????????????????? | | ???????????### #???????????? #?????????????????? | | ???????????# # ###????????? #?????????????????? | | ????????????# +????????? #?????????????????? | | ?????????????# #???????? #?????????????????? | | ??????????????# #???????? ##????????????????? | | ??????????????# #??????? #????????????????? | | ??????????????# ######## #????????????????? | | ?????????????## kc cc@ H +????????????????? | | ?????????????#T c###c# #????????????????? | | ?????????????## #?### #????????????????? | | ???????????#### "" #?????#####????????????????? | | ???????????#""" """ #########??????????????????? | | ???????????#"Y """ ## !!!!#??+#??#####???????? | | ???????????#""" ## =!!!!#?? #? #???????? | | ???????????####* ## #?? # "#???????? | | ??????????????# ## ### # T#???????? | | ?????????????##* = + [! "#???????? | | ?????????????# ##+######## # * #???????? | | ?????????????# = # # #??????#???????? | | ????????????## """ # """ #??????????????? | | ????????????# # #! """ # """ #??????????????? | | ????????????# """ # """ #??????????????? | | ????????##### ##[ # ########???????? | | ????????# # # "" # # #???????? | | ????????# # # "Y # """ #] """ #???????? | | ????????# + + "" [ # """ # """ #???????? | | ????????# # # # """ # """ #???????? | | ????????# # #+###+#### # """ #???????? | | ????????# # # """ #???????? | | ????????# # ##### + #???????? | | ????????#######+##### # """ #???????? | | ??????????# """ """ # ######## # """ #???????? | +----------------------------------------------------+ Best States ------------- Heat Dissipation 31 Coolant Potential 50 Energy Generation 10 Energy Capacity 250 Matter Stores 300 Matter Capacity 300 Sight Range 21 Terrain Scan Density 10 Evasion (%) 63 Offensive Hacking 21 Item Schematics ----------------- None Robot Schematics ------------------ None Fabricated ------------ Nothing Repaired ---------- Sub. Optics | 80% | -8/Materials | Broken Alien Tech Used ----------------- None Achievements -------------- None Challenges ------------ None Game ------ Seed AmuletDisruptionBrace Manual? 0 Play Time 00:21:34 Cumulative 6.4 hours Start 2025.09.02 @ 23:11:25 End 2025.09.17 @ 10:47:49 Sessions 3 Manual Loads 0 Difficulty Rogue Special Mode None Game No. 12 Rogue 12 Adventurer 0 Explorer 0 Win Type - Total 0 Types 0/0/0/0/0/0/0/0/0/0 Lore% 6 Gallery% 8 Achievement% 11 Wizard Run 0 Options --------- Layout 1 ASCII 0 Keyboard 0 Movement Numpad Keybinds 0 Fullscreen 1 Font 24/Smallcaps Map View 50x35 Zoom Use 0% Tactical HUD 0 Map Filters NONE Filters NONE Steam 1 RUN: ba522328-78d8-4a13-800b-99a8a873d5b3